fUST/lending_fUST_20260118
["ID","MTS","AMOUNT","RATE_DAILY","PERIOD"]
[402391223,1768671050879,-500.0,0.00016712,3]
[402391225,1768671050888,-500.0,0.00016712,3]
[402391227,1768671050897,-500.0,0.00016712,3]
[402391229,1768671050907,-500.0,0.00016712,3]
[402391231,1768671050920,-500.0,0.00016712,3]
[402391233,1768671050929,-500.0,0.00016712,3]
[402391235,1768671050938,-978.04,0.00016712,3]
[402391237,1768671050948,-745.14,0.00016712,3]
[402391239,1768671050959,-500.0,0.00016712,3]
[402391241,1768671050969,-500.0,0.00016712,3]
[402391243,1768671050979,-573.45,0.00016712,3]
[402391245,1768671050991,-2897.63,0.00016712,3]
[402391247,1768671051000,-991.13,0.00016712,3]
[402391249,1768671051010,-500.0,0.00016712,3]
[402391251,1768671051020,-500.0,0.00016712,3]
[402391253,1768671051030,-624.31598401,0.00016712,3]
[402391255,1768671051040,-1178.25,0.00016712,3]
[402391257,1768671051050,-183.181997,0.00016712,2]
[402391259,1768671051071,-690.23,0.00016712,3]
[402391261,1768671051085,-183.181997,0.00016712,2]
[402391263,1768671051095,-500.0,0.00016712,3]
[402391265,1768671051105,-500.0,0.00016712,3]
[402391267,1768671051115,-1111.8,0.00016712,3]
[402391269,1768671051124,-500.0,0.00016712,3]
[402391271,1768671051134,-183.181997,0.00016712,2]
[402391273,1768671051143,-354.56534222,0.00016712,3]
[402391275,1768671051153,-500.0,0.00016712,3]
[402391277,1768671051163,-500.0,0.00016712,3]
[402391279,1768671051172,-183.181997,0.00016712,2]
[402391281,1768671051182,-500.0,0.00016712,3]
[402391283,1768671051191,-630.79,0.00016712,3]
[402391285,1768671051200,-1007.32,0.00016712,3]
[402391287,1768671051210,-500.0,0.00016712,3]
[402391289,1768671051219,-500.0,0.00016712,3]
[402391291,1768671051229,-935.81,0.00016712,3]
[402391293,1768671051238,-500.0,0.00016712,3]
[402391295,1768671051248,-1293.81,0.00016712,3]
[402391297,1768671051258,-500.0,0.00016712,3]
[402391299,1768671051267,-500.0,0.00016712,3]
[402391301,1768671051276,-500.0,0.00016712,3]
[402391303,1768671051285,-885.21,0.00016712,3]
[402391305,1768671051295,-500.0,0.00016712,3]
[402391307,1768671051304,-500.0,0.00016712,3]
[402391308,1768671051313,-892.47,0.00016712,3]
[402391310,1768671051322,-795.91,0.00016712,3]
[402391312,1768671051331,-916.13,0.00016712,3]
[402391314,1768671051341,-631.25,0.00016712,3]
[402391316,1768671051351,-500.0,0.00016712,3]
[402391318,1768671051360,-1865.13,0.00016712,3]
[402391320,1768671051371,-500.0,0.00016712,3]
[402391322,1768671051380,-500.0,0.00016712,3]
[402391324,1768671051390,-500.0,0.00016712,3]
[402391326,1768671051401,-185.72313516,0.00016712,3]
[402391328,1768671051411,-868.23,0.00016712,3]
[402391330,1768671051420,-500.0,0.00016712,2]
[402391333,1768671051431,-151.0,0.00016712,2]
[402391335,1768671051440,-731.07,0.00016712,3]
[402391337,1768671051450,-151.0,0.00016712,2]
[402391339,1768671051459,-500.0,0.00016712,3]
[402391341,1768671051469,-1171.48,0.00016712,3]
[402391343,1768671051478,-500.0,0.00016712,3]
[402391345,1768671051488,-500.0,0.00016712,3]
[402391347,1768671051497,-500.0,0.00016712,3]
[402391349,1768671051506,-151.0,0.00016712,2]
[402391351,1768671051515,-500.0,0.00016712,2]
[402391353,1768671051524,-152.4444076,0.00016712,3]
[402391355,1768671051534,-500.0,0.00016787,2]
[402391357,1768671051543,-461.67526834,0.00016788,2]
[402391359,1768671051552,-2230.315306,0.00016788,2]
[402391361,1768671051561,-500.0,0.00016889,2]
[402391363,1768671051571,-500.0,0.00016986,3]
[402391365,1768671051580,-500.0,0.00016986,3]
[402391367,1768671051589,-500.0,0.00016986,3]
[402391369,1768671051599,-500.0,0.00016986,3]
[402391371,1768671051608,-500.0,0.00016986,3]
[402391373,1768671051618,-650.23,0.00016986,3]
[402391375,1768671051627,-447.736525,0.00016986,3]
[402391377,1768671051638,-504.49,0.00016986,3]
[402391379,1768671051647,-500.0,0.00016986,3]
[402391381,1768671051656,-500.0,0.00016986,3]
[402391383,1768671051665,-500.0,0.00016986,3]
[402391385,1768671051675,-500.0,0.00016986,3]
[402391387,1768671051684,-1020.29,0.00016986,3]
[402391389,1768671051693,-500.0,0.00016986,3]
[402391391,1768671051702,-500.0,0.00016986,3]
[402391393,1768671051711,-500.0,0.00016986,3]
[402391395,1768671051720,-513.67,0.00016986,3]
[402391397,1768671051729,-500.0,0.00016986,3]
[402391399,1768671051738,-630.36,0.00016986,3]
[402391401,1768671051748,-500.0,0.00016986,3]
[402391403,1768671051758,-500.0,0.00016986,3]
[402391405,1768671051768,-500.0,0.00016986,3]
[402391407,1768671051777,-641.57,0.00016986,3]
[402391409,1768671051787,-560.77,0.00016986,3]
[402391411,1768671051797,-500.0,0.00016986,3]
[402391413,1768671051807,-550.82,0.00016986,3]
[402391415,1768671051816,-601.93,0.00016986,3]
[402391417,1768671051826,-500.0,0.00016986,3]
[402391419,1768671051836,-607.92,0.00016986,3]
[402391421,1768671051846,-878.57,0.00016986,3]
[402391423,1768671051855,-500.0,0.00016986,3]
[402391425,1768671051864,-500.0,0.00016986,3]
[402391427,1768671051873,-618.04189693,0.00016986,3]
[402391429,1768671051883,-500.0,0.00016986,3]
[402391431,1768671051893,-500.0,0.00016986,3]
[402391433,1768671051903,-605.26,0.00016986,3]
[402391435,1768671051917,-500.0,0.00016986,3]
[402391437,1768671051928,-500.0,0.00016986,3]
[402391439,1768671051938,-548.89807406,0.00016986,3]
[402391441,1768671051948,-500.0,0.00016986,3]
[402391443,1768671051959,-500.0,0.00016986,3]
[402391445,1768671051968,-836.17,0.00016986,3]
[402391447,1768671051978,-500.0,0.00016986,3]
[402391449,1768671051989,-500.0,0.00016986,3]
[402391451,1768671051998,-500.0,0.00016986,3]
[402391453,1768671052008,-500.0,0.00016986,3]
[402391455,1768671052018,-500.0,0.00016986,3]
[402391457,1768671052028,-500.0,0.00016986,3]
[402391459,1768671052037,-500.0,0.00016986,3]
[402391461,1768671052047,-516.72,0.00016986,3]
[402391463,1768671052056,-500.0,0.00016986,3]
[402391465,1768671052065,-500.0,0.00016986,3]
[402391467,1768671052075,-500.0,0.00016986,3]
[402391469,1768671052084,-500.0,0.00016986,3]
[402391471,1768671052093,-500.0,0.00016986,3]
[402391473,1768671052102,-500.0,0.00016986,3]
[402391475,1768671052112,-500.0,0.00016986,3]
[402391477,1768671052121,-1069.93,0.00016986,3]
[402391479,1768671052131,-500.0,0.00016986,3]
[402391481,1768671052140,-500.0,0.00016986,3]
[402391483,1768671052149,-958.52,0.00016986,3]
[402391485,1768671052158,-1014.43,0.00016986,3]
[402391487,1768671052167,-500.0,0.00016986,3]
[402391489,1768671052177,-537.39,0.00016986,3]
[402391491,1768671052187,-500.0,0.00016986,3]
[402391493,1768671052196,-500.0,0.00016986,3]
[402391495,1768671052206,-827.72,0.00016986,3]
[402391497,1768671052215,-500.0,0.00016986,3]
[402391499,1768671052225,-507.04,0.00016986,3]
[402391501,1768671052235,-500.0,0.00016986,3]
[402391503,1768671052244,-500.0,0.00016986,3]
[402391505,1768671052253,-571.17,0.00016986,3]
[402391507,1768671052263,-386.49269508,0.00016986,3]
[402391508,1768671052272,-500.0,0.00016986,3]
[402391510,1768671052281,-796.71,0.00016986,3]
[402391512,1768671052290,-500.0,0.00016986,3]
[402391514,1768671052300,-500.0,0.00016986,3]
[402391516,1768671052309,-759.51,0.00016986,3]
[402391518,1768671052319,-500.0,0.00016986,3]
[402391520,1768671052328,-663.56,0.00016986,3]
[402391522,1768671052338,-500.0,0.00016986,3]
[402391524,1768671052347,-500.0,0.00016986,3]
[402391526,1768671052357,-897.92,0.00016986,3]
[402391528,1768671052367,-1002.46,0.00016986,3]
[402391530,1768671052376,-500.0,0.00016986,3]
[402391532,1768671052385,-500.0,0.00016986,3]
[402391534,1768671052395,-569.16,0.00016986,3]
[402391537,1768671052405,-500.0,0.00016986,3]
[402391538,1768671052414,-457.43784109,0.00016986,3]
[402391543,1768671052449,-42.56215891,0.00016986,3]
[402391545,1768671052458,-973.03,0.00016986,3]
[402391547,1768671052467,-500.0,0.00016986,3]
[402391549,1768671052477,-500.0,0.00016986,3]
[402391551,1768671052485,-500.0,0.00016986,3]
[402391553,1768671052495,-378.39784109,0.00016986,3]
[402391640,1768671053378,-500.0,0.00016438,3]
[402391641,1768671053388,-500.0,0.00016712,3]
[402391643,1768671053397,-500.0,0.00016712,3]
[402391645,1768671053406,-121.60215891,0.00016986,3]
[402391647,1768671053416,-520.2570841,0.00016986,3]
[402391649,1768671053428,-625.5829159,0.00016986,3]
[402391651,1768671053438,-34.5294181,0.00016986,3]
[402391654,1768671053453,-568.54451647,0.00016438,3]
[402391656,1768671053464,-0.46548353,0.00016438,3]
[402391658,1768671053474,-465.4705819,0.00016986,3]
[402391660,1768671053484,-1036.57,0.00016986,3]
[402391661,1768671053493,-500.0,0.00016986,3]
[402391663,1768671053503,-38.5789323,0.00016986,3]
[402391756,1768671054505,-159.33365176,0.000149,2]
[402391758,1768671054515,-500.0,0.00016438,3]
[402391760,1768671054524,-500.0,0.00016438,3]
[402391762,1768671054533,-500.0,0.00016438,3]
[402391764,1768671054542,-500.0,0.00016438,3]
[402391766,1768671054551,-353.74,0.00016712,3]
[402391768,1768671054560,-413.07084808,0.00016712,3]
[402391770,1768671054571,-162.52915192,0.00016712,3]
[402391772,1768671054581,-461.4210677,0.00016986,3]
[402391774,1768671054590,-500.0,0.00016986,3]
[402391776,1768671054599,-500.0,0.00016986,3]
[402391778,1768671054609,-500.0,0.00016986,3]
[402391779,1768671054618,-463.17890822,0.00016986,3]
[402397240,1768671141595,1000.0,0.00027397,120]
[402397241,1768671154861,1000.0,0.00027397,120]
[402397242,1768671165595,1000.0,0.00027397,120]
[402397244,1768671184512,1000.0,0.00027397,120]
[402397245,1768671199689,1000.0,0.00027397,120]
[402397246,1768671218163,326.46728,0.00027397,120]
[402397250,1768671356803,500.0,0.00027397,120]
[402397252,1768671453409,320.92782663,9.91e-05,2]
[402397262,1768671672319,500.0,0.00027397,120]
[402397270,1768671758168,-1000.0,9.81e-05,2]
[402397271,1768671759356,-1000.0,9.81e-05,2]
[402397272,1768671760318,-1000.0,9.81e-05,2]
[402397273,1768671760679,-1000.0,9.81e-05,2]
[402397274,1768671761026,-1000.0,9.81e-05,2]
[402397275,1768671761372,-1000.0,9.909e-05,2]
[402397276,1768671761725,-200.0,9.909e-05,2]
[402397277,1768671761747,-559.0,9.91e-05,2]
[402397278,1768671761770,-217.52863777,9.955e-05,2]
[402397279,1768671761791,-23.47136223,0.0001,2]
[402397280,1768671762085,-136.52863777,0.0001,2]
[402397281,1768671765517,863.47136223,9.9e-05,2]
[402397282,1768671765538,1000.0,9.9e-05,2]
[402397283,1768671765558,1000.0,9.9e-05,2]
[402397284,1768671765580,1000.0,9.9e-05,2]
[402397285,1768671765600,1000.0,9.9e-05,2]
[402397286,1768671765619,136.52863777,9.9e-05,2]
[402397298,1768671987015,500.0,0.00027397,120]
[402397338,1768672232051,-5000.0,0.00011601,2]
[402397340,1768672232062,-216.89741415,0.00011836,2]
[402397341,1768672232071,-3076.67437675,0.00011837,2]
[402397343,1768672232081,-160.25739124,0.00013228,2]
[402397345,1768672232090,-376.91,0.00013322,2]
[402397347,1768672232100,-300.0,0.00013491,2]
[402397348,1768672232110,-300.0,0.00013491,2]
[402397350,1768672232119,-9470.45963764,0.00013492,2]
[402397387,1768672232482,-9336.43483078,0.00013492,2]
[402397389,1768672232492,-153400.29927994,0.00013492,2]
[402397401,1768672238330,-4435.21541733,0.00013492,2]
[402397402,1768672238425,-823357.59083431,0.00013492,2]
[402397403,1768672238436,-1501.33496132,0.00013599,2]
[402397404,1768672238447,-50000.0,0.00013699,2]
[402397405,1768672238456,-500.0,0.00013699,2]
[402397406,1768672238466,-1501.33496129,0.00013736,2]
[402397407,1768672238476,-255.9389487,0.00013836,2]
[402397408,1768672238487,-1501.33496129,0.00013873,2]
[402397409,1768672238496,-1501.33496129,0.0001401,2]
[402397410,1768672238506,-1501.33496129,0.00014147,2]
[402397411,1768672238515,-100000.0,0.00014152,2]
[402397412,1768672238525,-1000.0,0.00014247,2]
[402397413,1768672238536,-5000.0,0.0001451,2]
[402397414,1768672238545,-420.0,0.00014788,2]
[402397415,1768672238555,-504.21199472,0.00014795,2]
[402397416,1768672238564,-500.0,0.00014812,2]
[402397417,1768672238574,-4518.0689905,0.00014878,2]
[402397418,1768672238583,-157.2205694,0.00014944,2]
[402397419,1768672238593,-999.298191,0.00015197,2]
[402397421,1768672238603,-294.98048325,0.00015836,2]
[402397423,1768672238613,-160.0,0.00015928,2]
[402397425,1768672238623,-1041.66666667,0.00015928,2]
[402397427,1768672238633,-500.0,0.0001597,2]
[402397429,1768672238642,-30000.0,0.0001597,2]
[402397431,1768672238651,-2000.0,0.0001597,2]
[402397433,1768672238661,-445.202766,0.0001597,2]
[402397435,1768672238670,-2000.0,0.0001597,2]
[402397437,1768672238680,-2000.0,0.0001597,2]
[402397439,1768672238690,-2000.0,0.0001597,2]
[402397441,1768672238699,-162.380719,0.0001597,2]
[402397443,1768672238708,-2000.0,0.0001597,2]
[402397445,1768672238718,-2000.0,0.0001597,2]
[402397447,1768672238727,-168.3888056,0.0001597,2]
[402397449,1768672238737,-174.61919141,0.0001597,2]
[402397451,1768672238747,-2000.0,0.0001597,2]
[402397453,1768672238756,-181.08010149,0.0001597,2]
[402397455,1768672238765,-2000.0,0.0001597,2]
[402397457,1768672238774,-187.78006525,0.0001597,2]
[402397459,1768672238784,-2000.0,0.0001597,2]
[402397461,1768672238794,-194.72792766,0.0001597,2]
[402397463,1768672238804,-2000.0,0.0001597,2]
[402397465,1768672238814,-2000.0,0.0001597,2]
[402397467,1768672238823,-201.93286099,0.0001597,2]
[402397468,1768672238833,-2000.0,0.0001597,2]
[402397471,1768672238844,-209.40437684,0.0001597,2]
[402397473,1768672238853,-500.0,0.0001597,2]
[402397475,1768672238863,-2000.0,0.0001597,2]
[402397477,1768672238873,-217.15233878,0.0001597,2]
[402397479,1768672238883,-500.0,0.0001597,2]
[402397481,1768672238893,-2000.0,0.0001597,2]
[402397483,1768672238903,-225.18697532,0.0001597,2]
[402397485,1768672238913,-199.06654963,0.0001597,2]
[402397487,1768672238923,-500.0,0.0001597,2]
[402397489,1768672238932,-2000.0,0.0001597,2]
[402397491,1768672238941,-233.51889341,0.0001597,2]
[402397493,1768672238951,-500.0,0.0001597,2]
[402397495,1768672238961,-242.15909246,0.0001597,2]
[402397497,1768672238971,-2000.0,0.0001597,2]
[402397499,1768672238980,-500.0,0.0001597,2]
[402397500,1768672238991,-251.11897888,0.0001597,2]
[402397502,1768672239001,-2000.0,0.0001597,2]
[402397505,1768672239011,-500.0,0.0001597,2]
[402397506,1768672239021,-260.4103811,0.0001597,2]
[402397508,1768672239031,-2000.0,0.0001597,2]
[402397510,1768672239041,-270.0455652,0.0001597,2]
[402397512,1768672239050,-500.0,0.0001597,2]
[402397514,1768672239060,-280.03725112,0.0001597,2]
[402397516,1768672239069,-500.0,0.0001597,2]
[402397518,1768672239079,-290.39862941,0.0001597,2]
[402397520,1768672239088,-500.0,0.0001597,2]
[402397522,1768672239098,-2150.738,0.0001597,2]
[402397524,1768672239107,-301.1433787,0.0001597,2]
[402397526,1768672239117,-500.0,0.0001597,2]
[402397528,1768672239127,-500.0,0.0001597,2]
[402397530,1768672239137,-500.0,0.0001597,2]
[402397532,1768672239147,-500.0,0.0001597,2]
[402397534,1768672239157,-500.0,0.0001597,2]
[402397536,1768672239167,-500.0,0.0001597,2]
[402397538,1768672239177,-500.0,0.0001597,2]
[402397540,1768672239188,-500.0,0.0001597,2]
[402397542,1768672239199,-500.0,0.0001597,2]
[402397544,1768672239210,-499.0,0.00016209,2]
[402397546,1768672239220,-3000.0,0.00016428,2]
[402397548,1768672239230,-155.0,0.00016437,2]
[402397550,1768672239240,-500.0,0.00016438,3]
[402397552,1768672239250,-326.22,0.00016438,3]
[402397554,1768672239259,-500.0,0.00016438,3]
[402397556,1768672239269,-328.66179956,0.00016438,3]
[402397558,1768672239282,-500.0,0.00016438,3]
[402397560,1768672239292,-500.0,0.00016438,3]
[402397562,1768672239302,-500.0,0.00016438,3]
[402397564,1768672239311,-500.0,0.00016438,3]
[402397566,1768672239322,-220.42501894,0.00016438,3]
[402397568,1768672239333,-500.0,0.00016438,3]
[402397571,1768672239343,-514.23188033,0.00016438,3]
[402397572,1768672239355,-500.0,0.00016438,3]
[402397575,1768672239365,-500.0,0.00016438,3]
[402397576,1768672239374,-1033.84,0.00016438,3]
[402397578,1768672239383,-1070.01,0.00016438,3]
[402397580,1768672239393,-500.0,0.00016438,3]
[402397582,1768672239402,-500.0,0.00016438,3]
[402397584,1768672239412,-500.0,0.00016438,3]
[402397586,1768672239422,-500.0,0.00016438,3]
[402397589,1768672239432,-500.0,0.00016438,3]
[402397591,1768672239441,-796.7,0.00016438,3]
[402397593,1768672239450,-500.0,0.00016438,3]
[402397595,1768672239459,-500.0,0.00016438,3]
[402397597,1768672239469,-500.0,0.00016438,3]
[402397599,1768672239478,-618.49,0.00016438,3]
[402397600,1768672239487,-500.0,0.00016438,3]
[402397602,1768672239497,-500.0,0.00016438,3]
[402397604,1768672239506,-1270.86,0.00016438,3]
[402397606,1768672239515,-500.0,0.00016438,3]
[402397608,1768672239525,-500.0,0.00016438,3]
[402397610,1768672239534,-500.0,0.00016438,3]
[402397612,1768672239543,-500.0,0.00016438,3]
[402397614,1768672239552,-500.0,0.00016438,3]
[402397616,1768672239562,-500.0,0.00016438,3]
[402397619,1768672239572,-813.64,0.00016438,3]
[402397621,1768672239581,-500.0,0.00016438,3]
[402397623,1768672239591,-500.0,0.00016438,3]
[402397625,1768672239600,-500.0,0.00016438,3]
[402397627,1768672239611,-547.667889,0.00016438,3]
[402397629,1768672239621,-500.0,0.00016438,3]
[402397631,1768672239631,-500.0,0.00016438,3]
[402397633,1768672239640,-561.64,0.00016438,3]
[402397635,1768672239649,-815.39,0.00016438,3]
[402397637,1768672239658,-500.0,0.00016438,3]
[402397639,1768672239667,-1185.99,0.00016438,3]
[402397641,1768672239676,-500.0,0.00016438,3]
[402397643,1768672239686,-500.0,0.00016438,3]
[402397645,1768672239695,-567.48,0.00016438,3]
[402397647,1768672239704,-500.0,0.00016438,3]
[402397649,1768672239713,-500.0,0.00016438,3]
[402397651,1768672239722,-500.0,0.00016438,3]
[402397653,1768672239731,-500.0,0.00016438,3]
[402397655,1768672239741,-500.0,0.00016438,3]
[402397657,1768672239750,-649.06,0.00016438,3]
[402397659,1768672239759,-408.02411447,0.00016438,3]
[402397661,1768672239768,-500.0,0.00016438,3]
[402397663,1768672239777,-500.0,0.00016438,3]
[402397665,1768672239786,-565.36,0.00016438,3]
[402397667,1768672239795,-500.0,0.00016438,3]
[402397669,1768672239804,-500.0,0.00016438,3]
[402397671,1768672239813,-844.87,0.00016438,3]
[402397673,1768672239823,-500.0,0.00016438,3]
[402397675,1768672239832,-1175.77,0.00016438,3]
[402397677,1768672239842,-346.63907245,0.00016438,3]
[402397679,1768672239851,-500.0,0.00016438,3]
[402397681,1768672239861,-500.0,0.00016438,3]
[402397683,1768672239884,-227.29636774,0.00016438,3]
[402397685,1768672239894,-500.0,0.00016438,3]
[402397687,1768672239904,-500.0,0.00016438,3]
[402397689,1768672239913,-1169.86,0.00016438,3]
[402397691,1768672239922,-500.0,0.00016438,3]
[402397692,1768672239932,-500.0,0.00016438,3]
[402397695,1768672239941,-534.26411861,0.00016438,3]
[402397697,1768672239951,-602.7,0.00016438,3]
[402397699,1768672239960,-500.0,0.00016438,3]
[402397701,1768672239970,-500.0,0.00016438,3]
[402397703,1768672239980,-500.0,0.00016438,3]
[402397705,1768672239990,-500.0,0.00016438,3]
[402397706,1768672239999,-500.0,0.00016438,3]
[402397707,1768672240007,-500.0,0.00016438,3]
[402397709,1768672240017,-500.0,0.00016438,3]
[402397711,1768672240027,-500.0,0.00016438,3]
[402397713,1768672240039,-605.61,0.00016438,3]
[402397715,1768672240050,-500.0,0.00016438,3]
[402397717,1768672240060,-514.68,0.00016438,3]
[402397719,1768672240069,-500.0,0.00016438,3]
[402397721,1768672240078,-500.0,0.00016438,3]
[402397723,1768672240088,-500.0,0.00016438,3]
[402397725,1768672240099,-637.45,0.00016438,3]
[402397727,1768672240108,-595.27,0.00016438,3]
[402397729,1768672240117,-622.37,0.00016438,3]
[402397731,1768672240126,-510.29,0.00016438,3]
[402397733,1768672240137,-500.0,0.00016438,3]
[402397735,1768672240146,-500.0,0.00016438,3]
[402397737,1768672240155,-500.0,0.00016438,3]
[402397739,1768672240164,-747.18,0.00016438,3]
[402397741,1768672240174,-500.0,0.00016438,3]
[402397743,1768672240184,-500.0,0.00016438,3]
[402397745,1768672240194,-500.0,0.00016438,3]
[402397747,1768672240203,-500.0,0.00016438,3]
[402397749,1768672240213,-947.56,0.00016438,3]
[402397751,1768672240222,-590.26232333,0.00016438,3]
[402397753,1768672240232,-500.0,0.00016438,3]
[402397755,1768672240242,-756.15,0.00016438,3]
[402397757,1768672240251,-500.0,0.00016438,3]
[402397759,1768672240261,-534.17,0.00016438,3]
[402397761,1768672240273,-751.4,0.00016438,3]
[402397763,1768672240284,-500.0,0.00016438,3]
[402397765,1768672240293,-832.93,0.00016438,3]
[402397767,1768672240303,-500.0,0.00016438,3]
[402397769,1768672240311,-524.22048595,0.00016438,3]
[402397771,1768672240322,-500.0,0.00016438,3]
[402397773,1768672240331,-537.8,0.00016438,3]
[402397775,1768672240341,-611.35197763,0.00016438,3]
[402397777,1768672240352,-500.0,0.00016438,3]
[402397779,1768672240361,-500.0,0.00016438,3]
[402397781,1768672240371,-774.1,0.00016438,3]
[402397783,1768672240380,-500.0,0.00016438,3]
[402397785,1768672240390,-500.0,0.00016438,3]
[402397787,1768672240400,-379.25255787,0.00016438,3]
[402397789,1768672240409,-500.0,0.00016438,3]
[402397791,1768672240419,-1081.35,0.00016438,3]
[402397793,1768672240428,-500.0,0.00016438,3]
[402397795,1768672240438,-500.0,0.00016438,3]
[402397797,1768672240447,-500.0,0.00016438,3]
[402397799,1768672240457,-500.0,0.00016438,3]
[402397801,1768672240467,-864.76,0.00016438,3]
[402397803,1768672240476,-500.0,0.00016438,3]
[402397805,1768672240486,-1077.83,0.00016438,3]
[402397807,1768672240495,-500.0,0.00016438,3]
[402397809,1768672240505,-500.0,0.00016438,3]
[402397811,1768672240514,-988.32,0.00016438,3]
[402397813,1768672240524,-905.85,0.00016438,3]
[402397815,1768672240533,-1000.0,0.00016438,2]
[402397817,1768672240542,-500.0,0.00016438,3]
[402397819,1768672240552,-521.93686507,0.00016438,3]
[402397821,1768672240561,-500.0,0.00016438,3]
[402397823,1768672240570,-347.44370923,0.00016438,3]
[402397825,1768672240579,-500.0,0.00016438,3]
[402397827,1768672240588,-1338.2,0.00016438,3]
[402397829,1768672240597,-500.0,0.00016438,3]
[402397831,1768672240607,-557.94,0.00016438,3]
[402397832,1768672240616,-484.52529222,0.00016438,3]
[402397834,1768672240625,-500.0,0.00016438,3]
[402397836,1768672240635,-500.0,0.00016438,3]
[402397838,1768672240645,-500.0,0.00016438,3]
[402397840,1768672240655,-500.0,0.00016438,3]
[402397842,1768672240664,-500.0,0.00016438,3]
[402397844,1768672240674,-500.0,0.00016438,3]
[402397846,1768672240683,-500.0,0.00016438,3]
[402397848,1768672240692,-500.0,0.00016438,3]
[402397850,1768672240702,-954.03,0.00016438,3]
[402397852,1768672240711,-500.0,0.00016438,3]
[402397854,1768672240720,-500.0,0.00016438,3]
[402397856,1768672240730,-500.0,0.00016438,3]
[402397858,1768672240740,-500.0,0.00016438,3]
[402397860,1768672240749,-569.16,0.00016438,3]
[402397862,1768672240758,-500.0,0.00016438,3]
[402397864,1768672240767,-500.0,0.00016438,3]
[402397866,1768672240777,-500.0,0.00016438,3]
[402397868,1768672240787,-500.0,0.00016438,3]
[402397870,1768672240796,-500.0,0.00016438,3]
[402397872,1768672240806,-500.0,0.00016438,3]
[402397874,1768672240815,-642.64,0.00016438,3]
[402397876,1768672240824,-500.0,0.00016438,3]
[402397878,1768672240834,-652.9,0.00016438,3]
[402397880,1768672240844,-500.0,0.00016438,3]
[402397888,1768672240909,-548.54460161,0.00016438,3]
[402397890,1768672240920,-500.0,0.00016438,3]
[402397892,1768672240930,-500.0,0.00016438,3]
[402397894,1768672240939,-500.0,0.00016438,3]
[402397896,1768672240948,-500.0,0.00016438,3]
[402397898,1768672240958,-500.0,0.00016438,3]
[402397900,1768672240966,-653.37,0.00016438,3]
[402397902,1768672240975,-500.0,0.00016438,3]
[402397903,1768672240984,-500.0,0.00016438,3]
[402397905,1768672240993,-500.0,0.00016438,3]
[402397907,1768672241002,-1166.14,0.00016438,3]
[402397909,1768672241011,-500.0,0.00016438,3]
[402397911,1768672241021,-500.0,0.00016438,3]
[402397913,1768672241030,-500.0,0.00016438,3]
[402397915,1768672241038,-500.0,0.00016438,3]
[402397917,1768672241049,-500.0,0.00016438,3]
[402397919,1768672241059,-500.0,0.00016438,3]
[402397921,1768672241068,-527.42325342,0.00016438,3]
[402397923,1768672241077,-500.0,0.00016438,3]
[402397925,1768672241086,-500.0,0.00016438,3]
[402397927,1768672241095,-500.0,0.00016438,3]